[Event "VIII Lorca Open-A 2019"]
[Site "Lorca"]
[Date "2019.12.26"]
[Round "1.1"]
[White "Guerra Arrocha, Daniel"]
[Black "Grigoryan, Karen H."]
[Result "0-1"]
[ECO "B31"]
[WhiteElo "2105"]
[BlackElo "2621"]
[Annotator "RC"]
[PlyCount "23"]
[EventDate "2019.12.26"]
[EventType "swiss"]
[EventCountry "ESP"]
[SourceTitle "playchess.com"]
[Source "ChessBase"]
[SourceQuality "1"]
[TimeControl "5400+30"]

1. e4 c5 2. Nf3 Nc6 3. Bb5 g6 4. O-O Bg7 5. c3 e5 6. d3 Nge7 7. Be3 d6 8. d4 exd4 9. cxd4 a6 10. Be2 Bg4 11. dxc5 Bxf3 12. Bxf3 0-1

[Event "VIII Lorca Open-A 2019"]
[Site "Lorca"]
[Date "2019.12.26"]
[Round "1.5"]
[White "Rajarishi Karthi"]
[Black "Harutyunian, Tigran K."]
[Result "1-0"]
[ECO "D87"]
[WhiteElo "2093"]
[BlackElo "2540"]
[Annotator "RC"]
[PlyCount "33"]
[EventDate "2019.12.26"]
[EventType "swiss"]
[EventCountry "ESP"]
[SourceTitle "playchess.com"]
[Source "ChessBase"]
[SourceQuality "1"]
[TimeControl "5400+30"]

1. d4 {[%emt 0:00:30]} Nf6 {[%emt 0:00:00]} 2. c4 g6 {[%emt 0:00:30]} 3. Nc3 {[%emt 0:01:00]} d5 {[%emt 0:00:30]} 4. cxd5 {[%emt 0:00:30]} Nxd5 {[%emt 0:00:30]} 5. e4 {[%emt 0:00:30]} Nxc3 {[%emt 0:00:30]} 6. bxc3 {[%emt 0:00:30]} Bg7 {[%emt 0:00:30]} 7. Bc4 {[%emt 0:00:30]} c5 {[%emt 0:00:30]} 8. Ne2 {[%emt 0:00:30]} Nc6 {[%emt 0:00:30]} 9. Be3 {[%emt 0:00:30]} O-O {[%emt 0:00:30]} 10. O-O {[%emt 0:00:30]} Bg4 {[%emt 0:00:30]} 11. f3 {[%emt 0:00:30]} Bd7 {[%emt 0:00:30]} 12. Rb1 {[%emt 0:00:30]} Rc8 {[%emt 0:00:30]} 13. dxc5 {[%emt 0:00:30]} Qc7 {[%emt 0:00:30]} 14. Qa4 {[%emt 0:00:30]} a6 {[%emt 0:00:30]} 15. Qc2 {[%emt 0:00:30]} Na5 {[%emt 0:00:30]} 16. Bd3 {[%emt 0:00:30]} Rfd8 {[%emt 0:00:30]} 17. Rfd1 {[%emt 0:00:30]} 1-0

[Event "VIII Lorca Open-A 2019"]
[Site "Lorca"]
[Date "2019.12.27"]
[Round "2.1"]
[White "Grigoryan, Karen H."]
[Black "Alonso Garcia, Aaron"]
[Result "1-0"]
[ECO "B48"]
[WhiteElo "2621"]
[BlackElo "2258"]
[Annotator "RC"]
[PlyCount "81"]
[EventDate "2019.12.26"]
[EventType "swiss"]
[EventCountry "ESP"]
[SourceTitle "playchess.com"]
[Source "ChessBase"]
[SourceQuality "1"]
[TimeControl "5400+30"]

1. e4 {[%emt 0:03:54]} c5 {[%emt 0:01:02]} 2. Nf3 {[%emt 0:00:06]} e6 {[%emt 0:00:19]} 3. d4 {[%emt 0:00:06]} cxd4 {[%emt 0:00:02]} 4. Nxd4 {[%emt 0:00:06]} Nc6 {[%emt 0:00:06]} 5. Nc3 {[%emt 0:00:06]} Qc7 {[%emt 0:00:04]} 6. Be3 {[%emt 0:00:17]} a6 {[%emt 0:00:07]} 7. Qd2 {[%emt 0:01:28]} Nf6 {[%emt 0:00:53]} 8. O-O-O {[%emt 0:02:31]} Bb4 {[%emt 0:05:10]} 9. f3 {[%emt 0:00:07]} b5 {[%emt 0:00:29]} 10. Nxc6 {[%emt 0:02:24]} Qxc6 {[%emt 0:05:11]} 11. Bd4 {[%emt 0:06:24]} Be7 {[%emt 0:06:00]} 12. g4 {[%emt 0:01:37]} Bb7 {[%emt 0:08:28]} 13. g5 {[%emt 0:01:41]} Nh5 {[%emt 0:00:07]} 14. Bh3 {[%emt 0:01:55]} Rg8 {[%emt 0:28:12]} 15. Bg4 {[%emt 0:02:27]} g6 {[%emt 0:00:08]} 16. Rhe1 {[%emt 0:02:40]} Rc8 {[%emt 0:10:56]} 17. Kb1 {[%emt 0:02:10]} Kf8 {[%emt 0:04:34]} 18. h4 {[%emt 0:02:20]} Qc7 {[%emt 0:02:34]} 19. Ne2 {[%emt 0:05:18]} Ng7 {[%emt 0:02:59]} 20. Bc3 {[%emt 0:02:57]} Bc6 {[%emt 0:03:31]} 21. Nd4 {[%emt 0:01:57]} Qb8 {[%emt 0:01:42]} 22. Nxc6 {[%emt 0:00:45]} dxc6 {[%emt 0:00:47]} 23. Bf6 {[%emt 0:00:40]} Ne8 {[%emt 0:00:21]} 24. e5 {[%emt 0:00:16]} Qc7 {[%emt 0:03:37]} 25. f4 {[%emt 0:00:54]} h5 {[%emt 0:07:03]} 26. Bf3 {[%emt 0:00:13]} Ng7 {[%emt 0:03:08]} 27. Qd7 {[%emt 0:00:57]} Nf5 {[%emt 0:00:16]} 28. Be4 {[%emt 0:00:27]} Qxd7 {[%emt 0:04:39]} 29. Rxd7 {[%emt 0:00:07]} Bxf6 {[%emt 0:00:07]} 30. exf6 {[%emt 0:00:38]} Rh8 {[%emt 0:00:43]} 31. Red1 {[%emt 0:00:30]} Kg8 {[%emt 0:00:05]} 32. Bxf5 {[%emt 0:00:12]} gxf5 {[%emt 0:00:22]} 33. Re7 {[%emt 0:00:17]} Rf8 {[%emt 0:00:04]} 34. Rdd7 {[%emt 0:00:09]} c5 {[%emt 0:00:56]} 35. b3 {[%emt 0:00:16]} Rh7 {[%emt 0:00:50]} 36. Kb2 {[%emt 0:00:33]} Rh8 {[%emt 0:00:07]} 37. Rc7 {[%emt 0:00:27]} b4 {[%emt 0:00:21]} 38. Ra7 {[%emt 0:00:17]} a5 {[%emt 0:00:09]} 39. Rac7 {[%emt 0:00:20]} Rh7 {[%emt 0:00:43]} 40. Rxc5 {[%emt 0:00:07]} Rd8 {[%emt 0:00:14]} 41. Rxa5 {[%emt 0:00:11]} 1-0

[Event "VIII Lorca Open-A 2019"]
[Site "Lorca"]
[Date "2019.12.27"]
[Round "2.3"]
[White "Orantes Taboada, Francisco"]
[Black "Lopez Martinez, Josep Manuel"]
[Result "1/2-1/2"]
[ECO "D02"]
[WhiteElo "2242"]
[BlackElo "2561"]
[Annotator "ChessBase"]
[PlyCount "62"]
[EventDate "2019.12.26"]
[EventType "swiss"]
[EventCountry "ESP"]
[SourceTitle "playchess.com"]
[Source "ChessBase"]
[SourceQuality "1"]
[TimeControl "5400+30"]

1. Nf3 {[%emt 0:00:00]} d5 {[%emt 0:09:38]} 2. g3 {[%emt 0:00:00]} Nc6 {[%emt 0:00:30]} 3. d4 {[%emt 0:00:00]} Bf5 {[%emt 0:00:52]} 4. Bg2 {[%emt 0:00:33]} Qd7 {[%emt 0:04:27]} 5. O-O {[%emt 0:00:37]} f6 {[%emt 0:02:24]} 6. c4 {[%emt 0:01:37]} e6 {[%emt 0:00:28]} 7. Nc3 {[%emt 0:02:43]} dxc4 {[%emt 0:02:32]} 8. e4 {[%emt 0:01:54]} Bg4 {[%emt 0:01:28]} 9. d5 {[%emt 0:00:58]} Bxf3 {[%emt 0:11:28]} 10. Bxf3 {[%emt 0:04:09]} Ne5 {[%emt 0:01:02]} 11. Be2 {[%emt 0:22:13]} exd5 {[%emt 0:03:19]} 12. f4 {[%emt 0:12:55]} Nd3 {[%emt 0:00:27]} 13. Bg4 {[%emt 0:02:19]} Bc5+ {[%emt 0:02:33]} 14. Kg2 {[%emt 0:00:08]} Qd6 {[%emt 0:11:24]} 15. exd5 {[%emt 0:03:46]} Bb4 {[%emt 0:00:30]} 16. Qa4+ {[%emt 0:04:14]} Kf8 {[%emt 0:00:09]} 17. Qb5 {[%emt 0:09:58]} Qc5 {[%emt 0:02:32]} 18. Qxb7 {[%emt 0:03:10]} Re8 {[%emt 0:00:11]} 19. Be6 {[%emt 0:01:19]} Ne7 {[%emt 0:03:25]} 20. Ne4 {[%emt 0:06:39]} Qd4 {[%emt 0:01:13]} 21. Ng5 {[%emt 0:00:11]} h6 {[%emt 0:10:28]} 22. Nf7 {[%emt 0:03:26]} Qe4+ {[%emt 0:00:42]} 23. Kh3 {[%emt 0:00:09]} Qe2 {[%emt 0:04:47]} 24. Bd2 {[%emt 0:05:47]} Bxd2 {[%emt 0:01:43]} 25. Nxh8 {[%emt 0:00:05]} Be1 {[%emt 0:10:52]} 26. Raxe1 {[%emt 0:01:47]} Nxe1 {[%emt 0:00:12]} 27. Ng6+ {[%emt 0:00:04]} Nxg6 {[%emt 0:02:16]} 28. Qb4+ {[%emt 0:00:04]} Re7 {[%emt 0:06:37]} 29. Qb8+ {[%emt 0:02:29]} Re8 {[%emt 0:00:08]} 30. Qb4+ {[%emt 0:00:03]} Re7 {[%emt 0:02:43]} 31. Qb8+ {[%emt 0:00:04]} Re8 {[%emt 0:04:30]} 1/2-1/2

[Event "VIII Lorca Open-A 2019"]
[Site "Lorca"]
[Date "2019.12.27"]
[Round "2.4"]
[White "Sivuk, Vitaly"]
[Black "Medarde Santiago, Luis Marcos"]
[Result "1-0"]
[ECO "E21"]
[WhiteElo "2588"]
[BlackElo "2254"]
[Annotator "ChessBase"]
[PlyCount "65"]
[EventDate "2019.12.26"]
[EventType "swiss"]
[EventCountry "ESP"]
[SourceTitle "playchess.com"]
[Source "ChessBase"]
[SourceQuality "1"]
[TimeControl "5400+30"]

1. d4 {[%emt 1:30:30]} Nf6 {[%emt 1:30:30]} 2. c4 {[%emt 0:00:30]} e6 {[%emt 0:00:30]} 3. Nc3 {[%emt 0:00:30]} Bb4 {[%emt 0:00:30]} 4. Nf3 {[%emt 0:00:30]} O-O {[%emt 0:00:30]} 5. Bg5 {[%emt 0:00:30]} c5 {[%emt 0:00:30]} 6. Rc1 {[%emt 0:00:30]} h6 {[%emt 0:00:30]} 7. Bh4 {[%emt 0:00:30]} cxd4 {[%emt 0:00:30]} 8. Nxd4 {[%emt 0:00:30]} d5 {[%emt 0:00:30]} 9. cxd5 {[%emt 0:00:30]} g5 {[%emt 0:00:30]} 10. Bg3 {[%emt 0:00:30]} Qxd5 {[%emt 0:00:30]} 11. e3 {[%emt 0:00:30]} Qxa2 {[%emt 0:00:30]} 12. Bd3 {[%emt 0:00:30]} Qxb2 {[%emt 0:00:30]} 13. O-O {[%emt 0:00:30]} Bxc3 {[%emt 0:00:30]} 14. Rc2 {[%emt 0:00:30]} Qb4 {[%emt 0:00:30]} 15. Nb5 {[%emt 0:00:30]} Rd8 {[%emt 0:00:30]} 16. Bh7+ {[%emt 0:00:30]} Kxh7 {[%emt 0:00:30]} 17. Qxd8 {[%emt 0:00:30]} Nc6 {[%emt 0:00:30]} 18. Qd3+ {[%emt 0:00:30]} Qe4 {[%emt 0:00:30]} 19. Qxc3 {[%emt 0:00:30]} Nd5 {[%emt 0:00:30]} 20. Qb2 {[%emt 0:00:30]} f5 {[%emt 0:00:30]} 21. Nc7 {[%emt 0:00:30]} Nxc7 {[%emt 0:00:30]} 22. Bxc7 {[%emt 0:00:30]} Qb4 {[%emt 0:00:30]} 23. Qa1 {[%emt 0:00:30]} Qe7 {[%emt 0:00:30]} 24. Be5 {[%emt 0:00:30]} Bd7 {[%emt 0:00:30]} 25. Bf6 {[%emt 0:00:30]} Qf7 {[%emt 0:00:30]} 26. Qb2 {[%emt 0:00:30]} Kg6 {[%emt 0:00:30]} 27. Bh8 {[%emt 0:00:30]} Kh7 {[%emt 0:00:30]} 28. Bc3 {[%emt 0:00:30]} b5 {[%emt 0:00:30]} 29. Qxb5 {[%emt 0:00:30]} f4 {[%emt 0:00:30]} 30. Rd2 {[%emt 0:00:30]} Be8 {[%emt 0:00:30]} 31. exf4 {[%emt 0:00:30]} gxf4 {[%emt 0:00:30]} 32. Re1 {[%emt 0:00:30]} Qg6 {[%emt 0:00:30]} 33. Qb7+ {[%emt 0:00:30]} 1-0

[Event "VIII Lorca Open-A 2019"]
[Site "Lorca"]
[Date "2019.12.27"]
[Round "2.5"]
[White "Tudela Corbalan, Carlos"]
[Black "Krysa, Leandro"]
[Result "0-1"]
[ECO "A20"]
[WhiteElo "2238"]
[BlackElo "2527"]
[Annotator "ChessBase"]
[PlyCount "84"]
[EventDate "2019.12.26"]
[EventType "swiss"]
[EventCountry "ESP"]
[SourceTitle "playchess.com"]
[Source "ChessBase"]
[SourceQuality "1"]
[TimeControl "5400+30"]

1. c4 {[%emt 1:30:30]} e5 {[%emt 1:30:30]} 2. g3 {[%emt 0:00:30]} c6 {[%emt 0:00:30]} 3. Bg2 {[%emt 0:00:30]} d5 {[%emt 0:00:30]} 4. cxd5 {[%emt 0:00:30]} cxd5 {[%emt 0:00:30]} 5. d4 {[%emt 0:00:30]} e4 {[%emt 0:00:30]} 6. Nh3 {[%emt 0:00:30]} Bb4+ {[%emt 0:00:30]} 7. Bd2 {[%emt 0:00:30]} Bxd2+ {[%emt 0:00:30]} 8. Qxd2 {[%emt 0:00:30]} Nf6 {[%emt 0:00:30]} 9. Nc3 {[%emt 0:00:30]} O-O {[%emt 0:00:30]} 10. Nf4 {[%emt 0:00:30]} Nc6 {[%emt 0:00:30]} 11. h4 {[%emt 0:00:30]} Re8 {[%emt 0:00:30]} 12. e3 {[%emt 0:00:30]} Bg4 {[%emt 0:00:30]} 13. O-O {[%emt 0:00:30]} Qd7 {[%emt 0:00:30]} 14. Nfxd5 {[%emt 0:00:30]} Nxd5 {[%emt 0:00:30]} 15. Nxe4 {[%emt 0:00:30]} b6 {[%emt 0:00:30]} 16. Rfe1 {[%emt 0:00:30]} Rac8 {[%emt 0:00:30]} 17. Nc3 {[%emt 0:00:30]} Nxc3 {[%emt 0:00:30]} 18. bxc3 {[%emt 0:00:30]} Ne5 {[%emt 0:00:30]} 19. e4 {[%emt 0:00:30]} Nf3+ {[%emt 0:00:30]} 20. Bxf3 {[%emt 0:00:30]} Bxf3 {[%emt 0:00:30]} 21. Qd3 {[%emt 0:00:30]} Qg4 {[%emt 0:00:30]} 22. e5 {[%emt 0:00:30]} Bd5 {[%emt 0:00:30]} 23. Kh2 {[%emt 0:00:30]} Qf3 {[%emt 0:00:30]} 24. Qxf3 {[%emt 0:00:30]} Bxf3 {[%emt 0:00:30]} 25. Re3 {[%emt 0:00:30]} Bd5 {[%emt 0:00:30]} 26. a4 {[%emt 0:00:30]} Rc4 {[%emt 0:00:30]} 27. a5 {[%emt 0:00:30]} b5 {[%emt 0:00:30]} 28. a6 {[%emt 0:00:30]} Ra4 {[%emt 0:00:30]} 29. Rb1 {[%emt 0:00:30]} Rb8 {[%emt 0:00:30]} 30. f4 {[%emt 0:00:30]} h5 {[%emt 0:00:30]} 31. f5 {[%emt 0:00:30]} Rxa6 {[%emt 0:00:30]} 32. g4 {[%emt 0:00:30]} hxg4 {[%emt 0:00:30]} 33. Kg3 {[%emt 0:00:30]} Rc6 {[%emt 0:00:30]} 34. Kxg4 {[%emt 0:00:30]} a5 {[%emt 0:00:30]} 35. Kf4 {[%emt 0:00:30]} Rh6 {[%emt 0:00:30]} 36. Kg5 {[%emt 0:00:30]} b4 {[%emt 0:00:30]} 37. cxb4 {[%emt 0:00:30]} axb4 {[%emt 0:00:30]} 38. Rb2 {[%emt 0:00:30]} b3 {[%emt 0:00:30]} 39. Rc3 {[%emt 0:00:30]} Rc6 {[%emt 0:00:30]} 40. Rxc6 {[%emt 0:00:30]} Bxc6 {[%emt 0:00:30]} 41. f6 {[%emt 0:00:30]} Bd5 {[%emt 0:00:30]} 42. h5 {[%emt 0:00:30]} Rc8 {[%emt 0:00:30]} 0-1

[Event "VIII Lorca Open-A 2019"]
[Site "Lorca"]
[Date "2019.12.27"]
[Round "2.6"]
[White "Bjerre, Jonas Buhl"]
[Black "Rodriguez Melendez, Juan Humbert"]
[Result "1-0"]
[ECO "B33"]
[WhiteElo "2526"]
[BlackElo "2242"]
[Annotator "ChessBase"]
[PlyCount "65"]
[EventDate "2019.12.26"]
[EventType "swiss"]
[EventCountry "ESP"]
[SourceTitle "playchess.com"]
[Source "ChessBase"]
[SourceQuality "1"]
[TimeControl "5400+30"]

1. e4 {[%emt 0:00:00]} c5 {[%emt 0:04:53]} 2. Nf3 {[%emt 0:00:15]} Nc6 {[%emt 0:00:09]} 3. d4 {[%emt 0:00:22]} cxd4 {[%emt 0:00:10]} 4. Nxd4 {[%emt 0:00:07]} Nf6 {[%emt 0:00:10]} 5. Nc3 {[%emt 0:00:21]} e5 {[%emt 0:00:15]} 6. Ndb5 {[%emt 0:01:11]} d6 {[%emt 0:00:13]} 7. Bg5 {[%emt 0:01:21]} a6 {[%emt 0:00:20]} 8. Na3 {[%emt 0:01:11]} b5 {[%emt 0:00:18]} 9. Nd5 {[%emt 0:00:38]} Be7 {[%emt 0:00:18]} 10. Bxf6 {[%emt 0:00:49]} Bxf6 {[%emt 0:00:16]} 11. c4 {[%emt 0:00:33]} b4 {[%emt 0:00:10]} 12. Nc2 {[%emt 0:00:05]} O-O {[%emt 0:00:30]} 13. g3 {[%emt 0:01:18]} Rb8 {[%emt 0:05:36]} 14. Qd3 {[%emt 0:03:12]} Bg5 {[%emt 0:03:48]} 15. h4 {[%emt 0:09:00]} Bh6 {[%emt 0:01:16]} 16. Bh3 {[%emt 0:00:59]} Be6 {[%emt 0:04:55]} 17. Kf1 {[%emt 0:03:36]} Qa5 {[%emt 0:06:48]} 18. Kg2 {[%emt 0:14:31]} Bxd5 {[%emt 0:04:17]} 19. cxd5 {[%emt 0:03:48]} Nd8 {[%emt 0:00:37]} 20. a3 {[%emt 0:02:56]} bxa3 {[%emt 0:05:05]} 21. Rxa3 {[%emt 0:02:28]} Qc7 {[%emt 0:19:41]} 22. b4 {[%emt 0:02:18]} Rb6 {[%emt 0:05:24]} 23. Rha1 {[%emt 0:02:20]} Qb7 {[%emt 0:04:56]} 24. Rxa6 {[%emt 0:04:32]} Rxb4 {[%emt 0:00:08]} 25. Nxb4 {[%emt 0:01:32]} Qxb4 {[%emt 0:00:06]} 26. Rb1 {[%emt 0:04:54]} Qc5 {[%emt 0:00:27]} 27. Rbb6 {[%emt 0:03:39]} f5 {[%emt 0:02:42]} 28. exf5 {[%emt 0:02:49]} Nf7 {[%emt 0:01:23]} 29. f6 {[%emt 0:02:41]} Kh8 {[%emt 0:06:32]} 30. Be6 {[%emt 0:02:40]} e4 {[%emt 0:02:21]} 31. Qxe4 {[%emt 0:02:39]} Ne5 {[%emt 0:00:14]} 32. Rxd6 {[%emt 0:02:12]} Nc4 {[%emt 0:00:13]} 33. Rdc6 {[%emt 0:01:14]} 1-0

[Event "VIII Lorca Open-A 2019"]
[Site "Lorca"]
[Date "2019.12.27"]
[Round "2.7"]
[White "Garcia Romero, Benjamin Abel"]
[Black "Maiorov, Nikita"]
[Result "0-1"]
[ECO "C84"]
[WhiteElo "2231"]
[BlackElo "2523"]
[Annotator "ChessBase"]
[PlyCount "78"]
[EventDate "2019.12.26"]
[EventType "swiss"]
[EventCountry "ESP"]
[SourceTitle "playchess.com"]
[Source "ChessBase"]
[SourceQuality "1"]
[TimeControl "5400+30"]

1. e4 {[%emt 0:00:00]} e5 {[%emt 0:07:56]} 2. Nf3 {[%emt 0:00:20]} Nc6 {[%emt 0:00:03]} 3. Bb5 {[%emt 0:00:25]} a6 {[%emt 0:00:03]} 4. Ba4 {[%emt 0:00:28]} Nf6 {[%emt 0:00:05]} 5. O-O {[%emt 0:00:27]} b5 {[%emt 0:00:06]} 6. Bb3 {[%emt 0:00:12]} Bb7 {[%emt 0:00:29]} 7. d3 {[%emt 0:07:40]} Be7 {[%emt 0:00:07]} 8. Nc3 {[%emt 0:04:52]} O-O {[%emt 0:00:46]} 9. Bd2 {[%emt 0:03:00]} d6 {[%emt 0:00:21]} 10. Nd5 {[%emt 0:04:35]} Nxd5 {[%emt 0:05:37]} 11. Bxd5 {[%emt 0:00:13]} Rb8 {[%emt 0:00:12]} 12. b4 {[%emt 0:03:25]} Qc8 {[%emt 0:00:47]} 13. Bg5 {[%emt 0:07:47]} Bxg5 {[%emt 0:04:05]} 14. Nxg5 {[%emt 0:00:09]} h6 {[%emt 0:00:15]} 15. Nxf7 {[%emt 0:11:38]} Rxf7 {[%emt 0:00:44]} 16. Qh5 {[%emt 0:00:05]} Nd8 {[%emt 0:00:46]} 17. Bxf7+ {[%emt 0:00:28]} Nxf7 {[%emt 0:00:05]} 18. f4 {[%emt 0:01:52]} Qe6 {[%emt 0:03:25]} 19. f5 {[%emt 0:01:07]} Qf6 {[%emt 0:00:39]} 20. Rae1 {[%emt 0:02:27]} d5 {[%emt 0:01:34]} 21. exd5 {[%emt 0:04:09]} Bxd5 {[%emt 0:00:08]} 22. Re3 {[%emt 0:01:58]} Nd6 {[%emt 0:17:22]} 23. Qg6 {[%emt 0:08:55]} Bf7 {[%emt 0:01:38]} 24. Qxf6 {[%emt 0:01:27]} gxf6 {[%emt 0:00:05]} 25. g4 {[%emt 0:00:14]} Rc8 {[%emt 0:00:30]} 26. Rd1 {[%emt 0:07:42]} Kh7 {[%emt 0:03:54]} 27. h3 {[%emt 0:01:15]} h5 {[%emt 0:02:04]} 28. Kf2 {[%emt 0:07:38]} c5 {[%emt 0:00:30]} 29. c3 {[%emt 0:01:28]} cxb4 {[%emt 0:02:29]} 30. cxb4 {[%emt 0:00:05]} Kh6 {[%emt 0:00:18]} 31. Ree1 {[%emt 0:03:07]} Rc3 {[%emt 0:05:18]} 32. Re3 {[%emt 0:09:02]} Ra3 {[%emt 0:03:13]} 33. Re2 {[%emt 0:00:27]} Kg5 {[%emt 0:00:40]} 34. Kg3 {[%emt 0:02:20]} h4+ {[%emt 0:00:49]} 35. Kf2 {[%emt 0:00:09]} Kf4 {[%emt 0:00:16]} 36. Rdd2 {[%emt 0:00:24]} Bd5 {[%emt 0:01:50]} 37. Re1 {[%emt 0:02:19]} e4 {[%emt 0:01:34]} 38. Re3 {[%emt 0:02:07]} Rc3 {[%emt 0:02:59]} 39. Ke2 {[%emt 0:02:33]} Nc4 {[%emt 0:02:10]} 0-1

[Event "VIII Lorca Open-A 2019"]
[Site "Lorca"]
[Date "2019.12.27"]
[Round "2.8"]
[White "Sosa, Tomas"]
[Black "Rohit S"]
[Result "1-0"]
[ECO "B52"]
[WhiteElo "2520"]
[BlackElo "2234"]
[Annotator "ChessBase"]
[PlyCount "81"]
[EventDate "2019.12.26"]
[EventType "swiss"]
[EventCountry "ESP"]
[SourceTitle "playchess.com"]
[Source "ChessBase"]
[SourceQuality "1"]
[TimeControl "5400+30"]

1. e4 {[%emt 1:30:30]} c5 {[%emt 1:30:30]} 2. Nf3 {[%emt 0:00:30]} d6 {[%emt 0:00:30]} 3. Bb5+ {[%emt 0:00:30]} Bd7 {[%emt 0:00:30]} 4. c4 {[%emt 0:00:30]} g6 {[%emt 0:00:30]} 5. Nc3 {[%emt 0:00:30]} Bg7 {[%emt 0:00:30]} 6. O-O {[%emt 0:00:30]} Nf6 {[%emt 0:00:30]} 7. h3 {[%emt 0:00:30]} O-O {[%emt 0:00:30]} 8. d4 {[%emt 0:00:30]} cxd4 {[%emt 0:00:30]} 9. Nxd4 {[%emt 0:00:30]} a6 {[%emt 0:00:30]} 10. Bxd7 {[%emt 0:00:30]} Qxd7 {[%emt 0:00:30]} 11. Be3 {[%emt 0:00:30]} Nc6 {[%emt 0:00:30]} 12. Rc1 {[%emt 0:00:30]} Rfc8 {[%emt 0:00:30]} 13. Nde2 {[%emt 0:00:30]} b5 {[%emt 0:00:30]} 14. Nd5 {[%emt 0:00:30]} Nxd5 {[%emt 0:00:30]} 15. cxd5 {[%emt 0:00:30]} Na5 {[%emt 0:00:30]} 16. b3 {[%emt 0:00:30]} Rxc1 {[%emt 0:00:30]} 17. Qxc1 {[%emt 0:00:30]} Rc8 {[%emt 0:00:30]} 18. Qa3 {[%emt 0:00:30]} Nb7 {[%emt 0:00:30]} 19. Qxa6 {[%emt 0:00:30]} Nc5 {[%emt 0:00:30]} 20. Bxc5 {[%emt 0:00:30]} Rxc5 {[%emt 0:00:30]} 21. Rc1 {[%emt 0:00:30]} Qc7 {[%emt 0:00:30]} 22. Rxc5 {[%emt 0:00:30]} Qxc5 {[%emt 0:00:30]} 23. Qa8+ {[%emt 0:00:30]} Bf8 {[%emt 0:00:30]} 24. Qa5 {[%emt 0:00:30]} Qc2 {[%emt 0:00:30]} 25. Qxb5 {[%emt 0:00:30]} Qb1+ {[%emt 0:00:30]} 26. Kh2 {[%emt 0:00:30]} Qf1 {[%emt 0:00:30]} 27. Kg3 {[%emt 0:00:30]} h5 {[%emt 0:00:30]} 28. Qd3 {[%emt 0:00:30]} h4+ {[%emt 0:00:30]} 29. Kf3 {[%emt 0:00:30]} g5 {[%emt 0:00:30]} 30. Qc2 {[%emt 0:00:30]} Bh6 {[%emt 0:00:30]} 31. Nd4 {[%emt 0:00:30]} g4+ {[%emt 0:00:30]} 32. hxg4 {[%emt 0:00:30]} h3 {[%emt 0:00:30]} 33. gxh3 {[%emt 0:00:30]} Qxh3+ {[%emt 0:00:30]} 34. Ke2 {[%emt 0:00:30]} Qxg4+ {[%emt 0:00:30]} 35. Nf3 {[%emt 0:00:30]} Qd7 {[%emt 0:00:30]} 36. Qc6 {[%emt 0:00:30]} Qg4 {[%emt 0:00:30]} 37. Qc2 {[%emt 0:00:30]} Qd7 {[%emt 0:00:30]} 38. a4 {[%emt 0:00:30]} Qa7 {[%emt 0:00:30]} 39. b4 {[%emt 0:00:30]} Qa6+ {[%emt 0:00:30]} 40. b5 {[%emt 0:00:30]} Qa5 {[%emt 0:00:30]} 41. Qb3 {[%emt 0:00:30]} 1-0

[Event "VIII Lorca Open-A 2019"]
[Site "Lorca"]
[Date "2019.12.27"]
[Round "3.1"]
[White "Plazuelo Pascual, Juan"]
[Black "Grigoryan, Karen H."]
[Result "0-1"]
[ECO "B06"]
[WhiteElo "2433"]
[BlackElo "2621"]
[Annotator "ChessBase"]
[PlyCount "50"]
[EventDate "2019.12.26"]
[EventType "swiss"]
[EventCountry "ESP"]
[SourceTitle "playchess.com"]
[Source "ChessBase"]
[SourceQuality "1"]
[TimeControl "5400+30"]

1. d4 {[%emt 1:30:30]} g6 {[%emt 1:30:30]} 2. e4 {[%emt 0:00:30]} Bg7 {[%emt 0:00:30]} 3. Nc3 {[%emt 0:00:30]} d6 {[%emt 0:00:30]} 4. Bg5 {[%emt 0:00:30]} Nd7 {[%emt 0:00:30]} 5. Qd2 {[%emt 0:00:30]} a6 {[%emt 0:00:30]} 6. a4 {[%emt 0:00:30]} c5 {[%emt 0:00:30]} 7. Nf3 {[%emt 0:00:30]} cxd4 {[%emt 0:00:30]} 8. Nxd4 {[%emt 0:00:30]} Ngf6 {[%emt 0:00:30]} 9. Bc4 {[%emt 0:00:00]} h6 {[%emt 0:00:00]} 10. Bh4 {[%emt 0:00:00]} Qb6 {[%emt 0:00:00]} 11. O-O-O {[%emt 0:00:00]} Qc5 {[%emt 0:00:00]} 12. Bb3 {[%emt 0:00:00]} b5 {[%emt 0:00:00]} 13. Bd5 {[%emt 0:00:00]} Rb8 {[%emt 0:00:00]} 14. Nc6 {[%emt 0:00:00]} b4 {[%emt 0:00:00]} 15. Ne2 {[%emt 0:00:00]} Rb6 {[%emt 0:00:00]} 16. Ned4 {[%emt 0:00:00]} b3 {[%emt 0:00:00]} 17. a5 {[%emt 0:00:00]} Rb7 {[%emt 0:00:00]} 18. Kb1 {[%emt 0:00:00]} bxc2+ {[%emt 0:00:00]} 19. Qxc2 {[%emt 0:00:00]} Qxc2+ {[%emt 0:00:00]} 20. Kxc2 {[%emt 0:00:00]} Rc7 {[%emt 0:00:00]} 21. Bxf6 {[%emt 0:00:00]} Bxf6 {[%emt 0:00:00]} 22. Kb1 {[%emt 0:06:11]} e6 {[%emt 0:00:00]} 23. Bb3 {[%emt 0:00:19]} e5 {[%emt 0:00:00]} 24. Nf5 {[%emt 0:00:27]} gxf5 {[%emt 0:00:00]} 25. Rxd6 {[%emt 0:00:03]} Be7 {[%emt 0:00:00]} 0-1